bitfinex-derivatives/quotes_ETHF0:USTF0_20220106
["timestamp","ask_amount","ask_price","bid_price","bid_amount"]
[1641484853495,0.002,3399.8,3399.2,0.384472]
[1641484853694,1.24188414,3400.1,3399.2,0.384472]
[1641484853695,1.24188414,3400.1,3399.3,1.5]
[1641484853894,1.86282621,3400.6,3399.5,1.47006507]
[1641484854194,1.86282621,3400.6,3400.0,12.7]
[1641484854395,1.86282621,3400.6,3400.1,0.397182]
[1641484854593,1.49026097,3400.6,3400.2,0.459982]
[1641484854794,1.49026097,3400.6,3400.2,2.00479]
[1641484854994,1.49026097,3400.6,3400.2,2.401972]
[1641484855195,1.49026097,3400.6,3400.2,2.00479]
[1641484856194,4.09781571,3401.0,3400.2,2.00479]
[1641484856396,1.47059472,3400.3,3400.2,2.00479]
[1641484856595,0.6008,3400.3,3400.2,2.00479]
[1641484858001,1.47047146,3400.5,3400.2,2.00479]
[1641484858198,1.47047146,3400.5,3399.9,2.00479]
[1641484858702,0.46704595,3400.3,3399.9,2.389262]
[1641484859799,1.29674595,3400.3,3399.9,2.389262]
[1641484860198,1.29674595,3400.3,3399.9,2.00479]
[1641484860401,0.8297,3400.3,3399.9,2.00479]
[1641484860602,1.5,3400.0,3399.0,0.72616465]
[1641484860801,1.5,3399.4,3399.0,0.72616465]
[1641484861001,0.7503,3399.4,3399.1,0.384472]
[1641484861211,0.7503,3399.4,3399.0,0.72616465]
[1641484861402,0.7503,3399.4,3398.9,2.00479]
[1641484862806,2.47183595,3399.3,3398.5,2.73095465]
[1641484863005,2.47183595,3399.3,3398.6,0.781654]
[1641484864009,2.47183595,3399.3,3398.6,0.384472]
[1641484864211,5.442859,3399.3,3398.5,2.73095465]
[1641484864407,2.47183595,3399.3,3398.5,2.73095465]
[1641484864707,2.00479,3399.3,3398.5,2.73095465]
[1641484864907,2.00479,3399.3,3398.6,0.384472]
[1641484865109,1.5,3399.0,3398.5,2.73095465]
[1641484865309,1.5,3399.0,3398.5,2.27285465]
[1641484865508,1.5,3398.7,3398.5,0.54526465]
[1641484865709,1.5,3398.7,3397.5,1.81804334]
[1641484866109,1.47143431,3398.3,3397.5,1.81804334]
[1641484866413,2.23263431,3398.3,3397.2,4.24210112]
[1641484866609,0.7612,3398.3,3397.2,1.81804334]
[1641484866809,2.00479,3398.2,3397.4,2.00479]
[1641484867210,1.19566724,3398.1,3397.4,2.00479]
[1641484868813,1.19566724,3398.1,3397.5,0.781654]
[1641484869013,1.19566724,3398.1,3397.5,0.384472]
[1641484869214,1.5,3397.6,3397.5,0.13685107]
[1641484869513,1.19566724,3398.1,3397.5,0.13685107]
[1641484869713,3.50479,3398.2,3397.5,5.107e-05]
[1641484869912,1.5,3398.0,3397.5,5.107e-05]
[1641484870314,0.91051687,3397.9,3397.5,5.107e-05]
[1641484870713,1.47174832,3397.6,3397.5,5.107e-05]
[1641484872419,1.47174832,3397.6,3397.4,2.00479]
[1641484873019,2.00479,3397.8,3397.5,0.459982]
[1641484873219,2.00479,3397.8,3397.5,0.6708]
[1641484874419,2.00479,3397.8,3397.4,2.00479]
[1641484877823,2.00479,3397.8,3396.9,0.49448029]
[1641484877824,1.47193679,3397.5,3396.9,0.49448029]
[1641484878022,0.384472,3397.4,3396.7,2.49927029]
[1641484878221,0.384472,3397.4,3396.8,0.397182]
[1641484878521,0.781654,3397.4,3396.8,0.397182]
[1641484878922,0.781654,3397.4,3396.9,12.7]
[1641484879120,4.00958,3397.8,3396.8,0.397182]
[1641484879622,4.00958,3397.8,3396.7,2.49927029]
[1641484880522,4.00958,3397.8,3396.8,1.81804334]
[1641484880723,0.99297243,3397.6,3396.8,1.81804334]
[1641484880923,0.781654,3397.5,3396.9,0.397182]
[1641484881623,0.781654,3397.5,3396.9,0.781654]
[1641484881822,0.781654,3397.5,3396.9,0.397182]
[1641484882024,0.781654,3397.5,3396.7,3.82283334]
[1641484882222,0.781654,3397.5,3396.7,1.81804334]
[1641484882822,2.00479,3396.9,3396.7,1.81804334]
[1641484883025,0.781654,3396.8,3396.7,1.81804334]
[1641484883424,0.781654,3396.8,3396.5,2.42405778]
[1641484883625,0.781654,3396.8,3396.2,4.51501793]
[1641484883825,1.47215782,3396.6,3396.2,4.51501793]
[1641484884026,0.397182,3396.5,3396.2,4.51501793]
[1641484884226,0.397182,3396.5,3396.1,1.84094802]
[1641484884628,1.47231821,3396.3,3396.1,1.84094802]
[1641484884826,4.406762,3396.2,3396.1,1.84094802]
[1641484885426,4.406762,3396.2,3395.9,0.49448029]
[1641484885627,0.384472,3396.1,3395.9,0.49448029]
[1641484885828,0.384472,3396.1,3395.4,3.33336565]
[1641484885829,0.397182,3396.0,3395.4,3.33336565]
[1641484886026,0.397182,3396.0,3395.3,1.48468553]
[1641484886227,2.05081681,3396.0,3395.3,1.48468553]
[1641484886427,1.47326828,3395.4,3394.8,3.33336565]
[1641484886627,0.397182,3395.3,3394.8,3.33336565]
[1641484886830,1.222482,3395.3,3394.8,3.33336565]
[1641484887029,4.00958,3394.9,3394.8,3.33336565]
[1641484887229,4.406762,3394.9,3394.8,3.33336565]
[1641484887429,4.406762,3394.9,3394.7,3.33336565]
[1641484887728,0.384472,3394.8,3394.7,3.33336565]
[1641484888129,3.17001778,3394.8,3394.7,3.33336565]
[1641484888629,1.69702727,3394.8,3394.7,3.33336565]
[1641484888829,3.17023044,3394.8,3393.8,2.00479]
[1641484889028,1.69702727,3394.8,3393.8,2.00479]
[1641484890233,1.69702727,3394.8,3393.9,0.07794495]
[1641484890234,0.4676697,3394.7,3393.9,0.07794495]
[1641484890434,0.397182,3394.6,3393.9,0.07794495]
[1641484890632,0.397182,3394.6,3393.9,1.57794495]
[1641484890833,0.397182,3394.6,3393.9,2.35959895]
[1641484891033,2.00479,3394.4,3393.9,2.35959895]
[1641484891235,0.397182,3394.3,3394.2,1.5]
[1641484891533,0.397182,3394.3,3393.9,0.85959895]
[1641484891534,0.397182,3394.3,3393.9,2.71056225]
[1641484891832,2.00479,3394.4,3393.9,2.71056225]
[1641484892032,2.401972,3394.4,3393.9,2.71056225]
[1641484892436,2.401972,3394.4,3394.1,1.8509633]
[1641484893435,2.401972,3394.4,3393.9,0.781654]
[1641484893635,2.401972,3394.4,3393.9,0.384472]
[1641484895839,2.401972,3394.4,3394.0,0.07794532]
[1641484896839,1.5,3394.3,3394.0,1.92890862]
[1641484897040,1.5,3394.3,3393.7,2.46795107]
[1641484897041,3.50479,3394.1,3393.7,2.46795107]
[1641484897239,0.384472,3394.0,3393.7,2.46795107]
[1641484897439,0.397182,3393.9,3393.7,2.46795107]
[1641484897642,0.397182,3393.9,3393.7,5.107e-05]
[1641484898040,1.47340938,3393.8,3393.7,5.107e-05]
[1641484898240,0.397182,3393.9,3393.7,5.107e-05]
[1641484898642,5.5,3393.8,3393.5,0.00014082]
[1641484898842,1.5,3393.6,3392.9,2.46712867]
[1641484899044,5.50958,3393.0,3392.4,3.39230192]
[1641484899241,1.5,3392.5,3392.4,2.92060192]
[1641484899643,1.897182,3392.5,3392.3,2.58248737]
[1641484899944,1.897182,3392.5,3392.3,1.74198737]
[1641484900149,1.897182,3392.5,3391.9,3.63639889]
[1641484900150,5.4742674,3392.4,3391.9,3.28359889]
[1641484900346,1.5,3392.0,1382.4,0.16640947]
[1641484900544,5.5,3391.1,3390.9,2.97549861]
[1641484900744,4.8426,3391.1,3390.2,3.71251163]
[1641484900946,0.397182,3391.0,3390.9,0.15599693]
[1641484901344,4.781654,3391.0,3390.9,0.15599693]
[1641484901744,4.781654,3391.0,3390.7,3.11133259]
[1641484901946,1.5,3390.9,3390.7,3.11133259]
[1641484902146,0.397182,3390.8,3390.7,3.11133259]
[1641484902345,1.897182,3390.8,3390.6,1.43683098]
[1641484902547,1.897182,3390.8,3390.6,0.74983098]
[1641484902848,1.897182,3390.8,3389.0,0.74983098]
[1641484903048,2.00479,3390.0,3389.1,12.7]
[1641484903247,2.00479,3390.0,3389.5,0.781654]
[1641484903647,2.401972,3390.0,3389.5,0.397182]
[1641484903846,2.00479,3390.0,3389.5,0.397182]
[1641484904247,0.397182,3389.9,3389.0,0.74983098]
[1641484904949,0.397182,3389.9,3389.4,2.401972]
[1641484905147,0.397182,3389.9,3389.4,2.00479]
[1641484905548,0.397182,3389.9,3389.6,1.8608873]
[1641484905748,0.397182,3389.9,3389.6,3.3608873]
[1641484905948,2.00479,3390.0,3389.8,1.5]
[1641484906549,2.00479,3390.0,3389.5,1.5]
[1641484906849,2.00479,3390.3,3389.9,12.7]
[1641484907048,0.99882414,3390.7,3390.2,1.5]
[1641484907248,0.99882414,3390.7,3389.9,12.7]
[1641484907249,2.414e-05,3390.7,3390.4,12.7]
[1641484907448,3.25332017,3391.0,3390.1,1.5]
[1641484907449,3.25332017,3391.0,3390.5,0.459982]
[1641484907650,3.25332017,3391.0,3390.5,0.384472]
[1641484907951,3.25332017,3391.0,3390.5,0.781654]
[1641484908250,3.63779217,3391.0,3390.5,0.781654]
[1641484908648,3.63779217,3391.0,3390.5,0.397182]
[1641484909051,3.63779217,3391.0,3390.5,2.401972]
[1641484909250,3.25332017,3391.0,3390.5,2.401972]
[1641484909449,1.24842777,3391.3,3390.9,1.5]
[1641484909652,2.777e-05,3391.3,3391.2,14.2]
[1641484909850,2.777e-05,3391.3,3391.2,14.659982]
[1641484910049,1.87304263,3391.8,3391.3,13.097182]
[1641484910250,1.87304263,3391.8,3391.7,1.5]
[1641484910653,0.384472,3392.0,3391.1,12.7]
[1641484910856,0.6202,3391.8,3390.8,2.47873869]
[1641484911150,2.00479,3391.3,3390.8,2.47873869]
[1641484911350,0.397182,3391.2,3390.8,2.47873869]
[1641484911549,1.87172113,3391.2,3390.8,2.47873869]
[1641484911952,1.87172113,3391.2,3390.5,2.00479]
[1641484912152,1.47472397,3390.7,3390.4,2.47873869]
[1641484912450,2.49960597,3390.7,3390.4,2.47873869]
[1641484912653,0.384472,3390.6,3390.4,2.47873869]
[1641484913052,2.00479,3390.5,3389.9,3.4082657]
[1641484913252,2.00479,3390.5,3389.8,2.00479]
[1641484913253,1.5,3390.4,3389.6,2.47873869]
[1641484913451,0.397182,3390.3,3389.6,2.47873869]
[1641484913651,1.47518517,3389.7,3389.6,2.47873869]
[1641484913853,2.27238517,3389.7,3389.6,2.47873869]
[1641484914453,2.27238517,3389.7,3389.4,0.781654]
[1641484914654,2.27238517,3389.7,3389.5,0.459982]
[1641484914853,0.7972,3389.7,3389.5,0.459982]
[1641484915054,0.7972,3389.7,3389.4,0.781654]
[1641484915656,2.00479,3389.8,3389.5,0.459982]
[1641484916054,2.00479,3389.8,3389.6,0.397182]
[1641484916655,2.00479,3389.8,3389.4,0.384472]
[1641484916855,2.53869,3389.8,3389.4,0.384472]
[1641484917757,0.397182,3389.7,3389.3,2.00479]
[1641484918658,0.397182,3389.7,3389.3,2.401972]
[1641484918858,0.397182,3389.7,3389.3,2.00479]
[1641484919357,1.116882,3389.7,3389.3,2.00479]
[1641484922159,1.116882,3389.7,3389.4,0.384472]
[1641484922361,0.46831887,3389.6,3389.5,0.459982]
[1641484922760,0.46831887,3389.6,3389.5,1.959982]
[1641484922960,1.24877153,3390.0,3389.5,1.959982]
[1641484923160,0.62427434,3390.6,3389.9,14.2]
[1641484923360,1.24877733,3390.2,3390.1,1.5]
[1641484923562,4.90806897,3391.3,3390.1,14.2]
[1641484923563,1.49853279,3390.5,3390.1,14.2]
[1641484923762,1.49853279,3390.5,3390.4,1.5]
[1641484923962,3.279e-05,3390.5,3390.4,2.3527]
[1641484924161,1.87304263,3390.7,3390.4,2.749882]
[1641484924362,1.87304263,3390.7,3390.6,1.5]
[1641484924862,1.87304263,3390.7,3390.6,1.897182]
[1641484925063,2.00479,3391.8,3390.6,5.906762]
[1641484925264,1.5,3391.5,3390.6,3.90920417]
[1641484926464,3.50479,3391.8,3390.6,3.90920417]
[1641484926666,2.00479,3391.8,3390.6,4.62370417]
[1641484927068,2.00479,3392.2,3391.7,2.00479]
[1641484927267,1.5,3391.8,3391.7,2.00479]
[1641484927469,2.312,3391.8,3391.3,2.00479]
[1641484927667,0.397182,3391.7,3391.3,2.00479]
[1641484927868,1.5,3391.4,3391.3,2.00479]
[1641484928271,1.5,3391.4,3389.9,0.6209]
[1641484928568,1.5,3391.0,3389.6,1.4743913]
[1641484928772,2.1429,3391.0,3389.6,1.4743913]
[1641484928969,0.6429,3391.0,3389.6,1.4743913]
[1641484929170,1.5,3389.7,3389.6,1.4743913]
[1641484929372,5.49292811,3389.7,3388.7,5.467]
[1641484929572,2.49292811,3389.7,3388.7,5.467]
[1641484929772,1.5,3388.9,3388.7,7.47179]
[1641484929972,1.202182,3388.9,3388.7,7.47179]
[1641484930171,0.805,3388.9,3388.7,2.00479]
[1641484931775,1.897182,3388.8,3388.7,2.00479]
[1641484932372,1.897182,3388.8,3388.4,2.00479]
[1641484932573,1.5,3388.5,3388.4,2.00479]
[1641484933378,1.897182,3388.5,3388.4,2.00479]
[1641484933580,3.397182,3388.5,3386.4,32.3138]
[1641484933781,1.5,3387.6,3387.1,30.8183]
[1641484934082,1.5,3387.6,3387.1,0.384472]
[1641484934083,1.176782,3387.6,3387.1,0.384472]
[1641484934280,1.176782,3387.6,3387.2,12.7]
[1641484934481,1.176782,3387.6,3387.1,0.384472]
[1641484934980,1.176782,3387.6,3386.2,0.6209]
[1641484935181,1.176782,3387.6,3385.2,33.604]
[1641484935381,2.676782,3387.6,3385.9,1.47600822]
[1641484935582,1.5,3387.1,3386.0,12.7]
[1641484935783,1.5,3387.1,3387.0,2.00479]
[1641484936181,1.884472,3387.1,3387.0,2.00479]
[1641484936584,0.384472,3387.1,3387.0,2.00479]
[1641484936781,1.897182,3387.2,3387.0,2.00479]
[1641484937982,0.397182,3387.2,3387.0,2.00479]
[1641484938786,1.5,3387.1,3387.0,2.00479]
[1641484938982,0.397182,3387.2,3387.0,2.00479]
[1641484939186,0.397182,3387.2,3386.5,12.7]
[1641484939385,0.397182,3387.2,3386.6,0.384472]
[1641484939585,0.397182,3387.2,3385.7,1.47609102]
[1641484939790,0.397182,3387.2,3387.0,2.00479]
[1641484940586,0.781654,3387.4,3387.0,2.00479]
[1641484940986,1.5,3387.1,3387.0,2.00479]
[1641484941186,1.897182,3387.1,3387.0,2.00479]
[1641484941789,1.897182,3387.1,3386.6,2.00479]
[1641484941987,0.397182,3387.1,3386.6,1.54229]
[1641484942189,1.5,3386.7,3386.6,1.54229]
[1641484942388,3.007854,3386.7,3386.6,1.54229]
[1641484943188,3.007854,3386.7,3385.3,12.7]
[1641484943388,1.5,3386.0,3385.3,12.7]
[1641484943588,0.397182,3385.9,3385.3,12.7]
[1641484943788,1.4765836,3386.5,3385.8,2.00479]
[1641484943789,1.5,3386.1,3385.8,2.00479]
[1641484943990,0.571,3385.9,3385.8,2.00479]
[1641484944392,0.384472,3386.2,3385.8,14.70479]
[1641484944589,0.384472,3386.2,3385.8,2.00479]
[1641484944791,1.5,3386.1,3385.8,2.00479]
[1641484945191,0.397182,3386.0,3385.8,2.00479]
[1641484945392,1.041882,3386.0,3385.8,2.00479]
[1641484945991,0.384472,3386.2,3385.9,13.159982]
[1641484946191,0.384472,3386.2,3385.9,0.459982]
[1641484946690,0.384472,3386.2,3385.8,2.00479]
[1641484947791,7.2e-05,3386.2,3385.8,2.00479]
[1641484947991,7.2e-05,3386.2,3385.8,4.00958]
[1641484948390,0.826272,3386.2,3385.8,4.00958]
[1641484948791,2.326272,3386.2,3385.8,4.00958]
[1641484949893,0.826272,3386.2,3385.9,12.7]
[1641484950094,1.5,3386.1,3385.9,12.7]
[1641484950293,7.2e-05,3386.2,3385.9,12.7]
[1641484951293,3.50479,3386.7,3386.1,12.7]
[1641484951897,1.5,3386.4,3386.3,2.00479]
[1641484952098,2.1862,3386.4,3386.3,2.00479]
[1641484952696,3.63443867,3386.4,3386.3,2.00479]
[1641484953695,1.22385868,3386.7,3386.3,2.464772]
[1641484953896,1.22385868,3386.7,3386.3,3.350872]
[1641484954095,1.22385868,3386.7,3386.3,16.050872]
[1641484954496,1.22385868,3386.7,3386.3,2.89089]
[1641484954698,1.46863042,3387.0,3386.3,2.89089]
[1641484954895,1.22385868,3387.1,3386.3,2.89089]
[1641484955095,1.5,3386.7,3386.4,12.7]
[1641484955295,1.5,3386.7,3386.5,0.459982]
[1641484955495,2.72385868,3387.1,3386.5,13.159982]
[1641484955697,2.96863042,3387.4,3386.5,13.968982]
[1641484955896,0.89014566,3389.0,3386.5,13.968982]
[1641484955897,1.87317448,3387.7,3387.4,12.7]
[1641484956198,1.49853959,3387.5,3387.4,13.34]
[1641484956596,1.49861407,3387.7,3387.4,13.34]
[1641484956796,1.49861407,3387.7,3387.6,12.7]
[1641484956997,2.49717269,3388.0,3387.6,12.7]
[1641484957200,2.49717269,3388.0,3387.6,13.159982]
[1641484957402,2.49717269,3388.0,3387.8,12.7]
[1641484957598,3.12173772,3389.1,3387.9,1.5]
[1641484957798,3.12173772,3389.1,3388.0,12.7]
[1641484957999,3.12173772,3389.1,3389.0,2.00479]
[1641484958400,3.12173772,3389.1,3388.0,12.7]
[1641484959002,1.4752287,3389.6,3388.0,12.7]
[1641484959201,1.4752287,3389.6,3388.5,12.7]
[1641484959400,1.4752287,3389.6,3388.5,0.8691]
[1641484959700,4.62173772,3389.7,3388.5,0.8691]
[1641484959899,2.00479,3389.3,3388.6,2.00479]
[1641484960100,2.00479,3389.3,3388.7,0.781654]
[1641484960500,2.00479,3389.3,3387.2,3.10147883]
[1641484960501,1.47556392,3388.8,3387.2,3.10147883]
[1641484960701,1.5,3388.3,3387.2,3.10147883]
[1641484960901,0.6416,3388.3,3387.2,3.10147883]
[1641484961499,0.6416,3388.3,3386.7,3.10147883]
[1641484961700,0.6416,3388.3,3386.8,12.7]
[1641484961901,2.00479,3388.1,3387.0,2.00479]
[1641484962304,2.00479,3388.1,3387.0,14.70479]
[1641484963804,2.00479,3388.1,3387.4,12.7]
[1641484964001,2.00479,3388.1,3387.5,15.486444]
[1641484964203,2.00479,3388.6,3388.1,12.7]
[1641484964404,2.00479,3388.6,3388.3,12.7]
[1641484964603,97.4876,3390.0,3388.4,13.159982]
[1641484964806,31.6207,3390.0,3388.4,12.7]
[1641484965205,1.5,3390.2,3388.6,12.7]
[1641484965406,1.84087586,3390.4,3389.1,12.7]
[1641484965606,1.47492843,3390.3,3389.1,13.3976]
[1641484965806,65.85478265,3390.8,3389.1,13.3976]
[1641484966011,35.18881705,3390.8,3390.2,2.00479]
[1641484966208,1.47241705,3390.8,3390.2,2.00479]
[1641484967509,3.50479,3391.3,3389.8,1.34472427]
[1641484967709,3.50479,3391.3,3389.2,30.403]
[1641484968008,2.00479,3390.2,3389.3,2.00479]
[1641484968209,2.00479,3390.5,3389.3,2.00479]
[1641484968410,1.47453696,3391.2,3389.9,12.7]
[1641484968611,1.47453696,3391.2,3389.9,13.3791]
[1641484968813,1.47453696,3391.2,3390.2,12.7]
[1641484969013,1.47453696,3391.2,3390.4,12.7]
[1641484969215,1.47453696,3391.2,3390.6,12.7]
[1641484969415,1.47241705,3392.0,3390.8,12.7]
[1641484969712,1.47241705,3392.0,3390.8,14.2]
[1641484969913,2.00479,3391.0,3390.8,12.7]
[1641484970113,2.00479,3391.0,3390.5,0.384472]
[1641484970314,2.00479,3391.0,3390.6,12.7]
[1641484970513,2.00479,3391.0,3390.5,0.781654]
[1641484972614,2.00479,3391.0,3390.5,13.481654]
[1641484973820,2.00479,3391.0,3390.5,0.384472]
[1641484974421,2.00479,3391.0,3390.5,13.084472]
[1641484975221,2.00479,3391.0,3390.5,0.384472]
[1641484975423,2.00479,3391.0,3390.2,2.00479]
[1641484976121,2.00479,3391.0,3390.3,0.384472]
[1641484976322,2.00479,3391.0,3390.4,12.7]
[1641484976723,2.00479,3391.0,3390.4,13.097182]
[1641484977922,2.00479,3391.0,3390.4,11.09895342]
[1641484978122,2.00479,3391.0,3390.4,0.397182]
[1641484978924,2.00479,3391.0,3390.3,0.384472]
[1641484979125,2.71559,3391.0,3390.2,14.70479]
[1641484979926,2.71559,3391.0,3390.3,0.384472]
[1641484980326,2.71559,3391.0,3390.2,2.00479]
[1641484980928,2.71559,3391.0,3389.3,2.00479]
[1641484981128,1.5,3390.6,3389.3,2.00479]
[1641484981328,1.5,3390.4,3389.3,2.00479]
[1641484982133,2.00479,3390.0,3389.3,2.00479]
[1641484982334,2.62009,3390.0,3389.3,2.00479]
[1641484985638,1.22645072,3389.5,3389.3,2.00479]
[1641484986738,1.22645072,3389.5,3389.4,0.459982]
[1641484987137,1.22645072,3389.5,3389.3,2.00479]
[1641484987637,1.22645072,3389.5,3389.4,13.159982]
[1641484987841,1.22645072,3389.5,3389.4,0.459982]
[1641484988839,0.46846601,3389.6,3389.4,0.459982]
[1641484989039,0.99932372,3389.5,3389.4,0.459982]
[1641484989441,0.99932372,3389.5,3389.3,2.00479]
[1641484989840,1.72412372,3389.5,3389.1,0.26656127]
[1641484990150,1.72412372,3389.5,3388.8,2.00479]
[1641484990346,2.00479,3389.2,3388.7,1.84044105]
[1641484991146,3.50479,3389.2,3388.4,4.4587114]
[1641484991344,3.50479,3389.2,3388.4,2.00479]
[1641484991743,2.00479,3389.2,3388.4,2.00479]
[1641484992547,3.50479,3389.2,3388.4,2.00479]
[1641484992848,1.5,3388.5,3387.1,32.3413]
[1641484993045,2.2993,3388.5,3386.5,2.4539214]
[1641484993246,1.47574248,3388.4,3386.5,3.92966388]
[1641484993447,1.47574248,3388.4,3386.6,12.7]
[1641484993645,0.7993,3388.5,3386.6,12.7]
[1641484993845,1.47583396,3388.2,3386.8,12.7]
[1641484994046,0.7993,3388.5,3386.8,12.7]
[1641484994249,2.00479,3388.0,3386.9,2.00479]
[1641484994450,2.00479,3388.0,3386.1,2.4539214]
[1641484994947,1.47601258,3387.8,3386.1,2.4539214]
[1641484995148,2.26131258,3387.8,3386.1,2.4539214]
[1641484995351,2.26131258,3387.8,3386.4,1.5]
[1641484995752,0.7853,3387.8,3386.5,12.7]
[1641484995950,0.7853,3387.8,3385.9,1.5]
[1641484996149,0.7853,3387.8,3385.7,1.5]
[1641484996351,2.00479,3387.4,3386.6,2.00479]
[1641484996551,2.00479,3387.4,3386.7,0.384472]
[1641484996750,2.00479,3387.4,3386.9,12.7]
[1641484997155,2.00479,3388.0,3386.9,12.7]
[1641484997354,2.00479,3388.0,3387.4,1.5]
[1641484997552,2.00479,3388.0,3387.5,13.097182]
[1641484997754,2.00479,3388.0,3387.5,0.397182]
[1641484997953,2.00479,3388.0,3387.4,0.8398]
[1641484999154,2.00479,3388.0,3387.5,0.384472]
[1641484999356,2.00479,3388.3,3387.5,0.953572]
[1641484999954,2.00479,3388.3,3387.6,0.397182]
[1641485000255,2.00479,3388.3,3387.8,2.00479]
[1641485002556,2.00479,3388.3,3387.8,2.401972]
[1641485003355,2.00479,3388.3,3387.8,2.00479]
[1641485003757,2.00479,3388.3,3387.5,0.384472]
[1641485003955,2.78909,3388.3,3387.5,0.384472]
[1641485004557,4.28909,3388.3,3386.9,2.00479]
[1641485004760,1.5,3387.8,3386.9,2.00479]
[1641485004956,1.47606923,3387.7,3386.9,2.00479]
[1641485006257,2.00479,3387.4,3386.9,2.00479]
[1641485012262,2.00479,3387.4,3386.3,2.00479]
[1641485012461,2.84229,3387.4,3386.3,2.00479]
[1641485013064,2.84229,3387.4,3386.5,1.5]
[1641485013262,0.8375,3387.4,3387.2,1.5]
[1641485013464,0.99333165,3388.2,3387.3,13.941636]
[1641485013662,0.99333165,3388.2,3387.5,12.7]
[1641485014064,0.99333165,3388.2,3387.7,12.7]
[1641485014268,2.99812165,3388.3,3387.7,12.7]
[1641485014666,2.99812165,3388.3,3387.7,13.097182]
[1641485015568,0.99220483,3389.1,3388.2,1.5]
[1641485015769,0.99220483,3389.1,3388.7,12.7]
[1641485016072,0.99220483,3389.1,3388.9,12.7]
[1641485016269,0.99220483,3389.1,3389.0,13.159982]
[1641485016571,1.24166457,3389.3,3389.0,13.557164]
[1641485016770,3.47720705,3389.6,3389.0,13.557164]
[1641485016771,2.00479,3389.6,3389.0,13.557164]
[1641485020577,2.00479,3389.6,3389.0,0.857164]
[1641485020777,2.00479,3389.6,3389.0,0.397182]
[1641485021180,2.00479,3389.6,3388.8,2.00479]
[1641485021382,2.65739,3389.6,3388.8,2.00479]
[1641485021676,2.65739,3389.6,3388.2,12.7]
[1641485021878,1.47537888,3389.2,3388.2,12.7]
[1641485022079,2.65739,3389.6,3388.2,12.7]
[1641485022281,1.47532881,3389.4,3388.2,14.70479]
[1641485022480,0.46860995,3389.5,3388.5,12.7]
[1641485022679,0.46860995,3389.5,3389.0,12.7]
[1641485022879,0.46860995,3389.5,3389.2,12.7]
[1641485023078,0.46860995,3389.5,3389.3,13.159982]
[1641485023280,0.46860995,3389.5,3389.3,12.7]
[1641485023579,2.00479,3389.6,3389.3,12.7]
[1641485023781,2.00479,3389.6,3389.4,0.459982]
[1641485023981,2.00479,3389.6,3389.4,0.857164]
[1641485024982,2.00479,3389.6,3389.4,0.164682]
[1641485025182,0.2325,3389.5,3388.8,2.00479]
[1641485025384,0.2325,3389.5,3388.8,2.401972]
[1641485025783,0.2325,3389.5,3388.9,0.384472]
[1641485026386,0.2325,3389.5,3388.8,2.00479]
[1641485026583,0.8891,3389.5,3388.8,2.00479]
[1641485026883,1.4753027,3389.4,3388.2,2.00479]
[1641485027283,1.4753027,3389.4,3388.3,12.7]
[1641485027684,0.6566,3389.5,3388.3,12.7]
[1641485028285,2.00479,3389.2,3388.3,12.7]
[1641485029887,2.00479,3389.2,3388.6,12.7]
[1641485030086,2.00479,3389.2,3388.8,12.7]
[1641485030488,2.00479,3389.2,3388.9,0.397182]
[1641485030687,2.00479,3389.2,3389.1,12.7]
[1641485031092,2.00479,3389.2,3389.1,13.097182]
[1641485032393,2.00479,3389.2,3389.1,0.397182]
[1641485032794,0.99047541,3390.0,3389.1,14.597182]
[1641485032994,0.99047541,3390.0,3389.8,1.5]
[1641485033193,0.99047541,3390.0,3389.9,13.941636]
[1641485034192,2.46289246,3390.5,3389.9,13.941636]
[1641485034392,0.99047541,3390.5,3390.2,2.00479]
[1641485034593,1.24166457,3390.7,3390.3,13.557164]
[1641485034793,1.24166457,3390.7,3390.5,12.7]
[1641485034994,1.86269761,3391.2,3390.6,1.5]
[1641485035194,1.86269761,3391.2,3390.7,13.084472]
[1641485035593,1.86269761,3391.2,3390.9,12.7]
[1641485035794,1.86269761,3391.2,3391.1,12.7]
[1641485035994,1.86269761,3392.3,3391.1,12.7]
[1641485036194,1.48576372,3392.0,3391.1,13.097182]
[1641485036396,1.48576372,3392.0,3391.4,2.00479]
[1641485036595,1.48576372,3392.0,3391.5,13.097182]
[1641485037395,2.00479,3392.2,3391.7,12.7]
[1641485037594,2.00479,3392.2,3391.9,12.7]
[1641485037595,2.47304999,3392.2,3391.9,12.7]
[1641485037796,2.47304999,3392.2,3392.0,13.159982]
[1641485037995,2.47304999,3392.2,3392.0,12.7]
[1641485038194,2.47304999,3392.2,3391.6,0.384472]
[1641485038397,2.47304999,3392.2,3391.7,13.097182]
[1641485038895,2.00479,3392.2,3391.7,13.097182]
[1641485040498,2.00479,3392.2,3391.7,11.09933738]
[1641485040898,98.2709,3393.4,3391.7,12.59933738]
[1641485041103,1.86269761,3393.8,3392.1,10.70215538]
[1641485041302,4.82269761,3393.8,3392.1,11.50935538]
[1641485041509,1.47352445,3393.5,3392.1,11.50935538]
[1641485041700,2.97352445,3393.5,3392.1,11.50935538]
[1641485042099,1.47352445,3393.5,3392.1,11.50935538]
[1641485042499,2.00479,3393.3,3392.6,10.70215538]
[1641485042719,2.00479,3393.3,3392.8,10.70215538]
[1641485042898,2.00479,3393.6,3392.8,10.70215538]
[1641485042899,2.00479,3393.6,3392.8,11.31365538]
[1641485043099,2.00479,3393.6,3392.9,0.397182]
[1641485043299,2.00479,3393.6,3393.0,10.70215538]
[1641485043500,2.23729,3393.6,3392.8,13.3115]
[1641485043700,2.23729,3393.6,3392.9,13.097182]
[1641485044302,2.23729,3393.6,3392.8,0.6115]
[1641485044500,0.2325,3393.6,3393.2,2.00479]
[1641485044700,1.47350708,3393.5,3393.2,2.00479]